bitfinex/quotes_BTCUSD_20251012
["timestamp","ask_amount","ask_price","bid_price","bid_amount"]
[1760262454320,0.19541837,111920.0,111910.0,0.08698]
[1760262454540,0.1787134,111920.0,111910.0,0.08698]
[1760262455494,0.1787134,111920.0,111910.0,0.04664]
[1760262455697,0.19543468,111920.0,111910.0,0.04664]
[1760262456071,0.19543468,111920.0,111910.0,0.04780301]
[1760262457162,0.19543468,111920.0,111910.0,0.08834301]
[1760262457482,0.19543468,111920.0,111910.0,0.04780301]
[1760262458084,0.20380332,111920.0,111910.0,0.00116301]
[1760262458868,0.20380332,111920.0,111910.0,0.04954301]
[1760262459072,0.20380332,111920.0,111910.0,0.09008301]
[1760262459221,0.20380332,111920.0,111910.0,0.04954301]
[1760262460029,0.20383018,111920.0,111910.0,0.04954301]
[1760262461096,0.19545792,111920.0,111910.0,0.04954301]
[1760262463238,0.19545886,111920.0,111910.0,0.04954301]
[1760262463388,0.21475082,111920.0,111910.0,0.04954301]
[1760262463568,0.21475082,111920.0,111910.0,0.09008301]
[1760262463779,0.21475082,111920.0,111910.0,0.04954301]
[1760262466031,0.24723978,111920.0,111910.0,0.00116301]
[1760262466218,0.2528808,111920.0,111910.0,0.00116301]
[1760262466825,0.26125492,111920.0,111910.0,0.00116301]
[1760262467354,0.2528808,111920.0,111910.0,0.00116301]
[1760262467529,0.29140702,111920.0,111910.0,0.00116301]
[1760262467726,0.31829277,111920.0,111910.0,0.00116301]
[1760262468971,0.35051026,111920.0,111910.0,0.00116301]
[1760262469937,0.11044716,111920.0,111910.0,0.00116301]
[1760262470273,0.28916056,111920.0,111910.0,0.00116301]
[1760262471900,0.26504561,111920.0,111910.0,0.00116301]
[1760262472101,0.24976608,111920.0,111910.0,0.02917301]
[1760262472313,0.24976608,111920.0,111910.0,0.08940301]
[1760262472736,0.24976608,111920.0,111910.0,0.00116301]
[1760262474764,0.21961418,111920.0,111910.0,0.00116301]
[1760262475876,0.21961418,111920.0,111910.0,0.08940301]
[1760262481703,0.21961418,111920.0,111910.0,0.00116301]
[1760262481898,0.21961418,111920.0,111910.0,0.02917301]
[1760262482129,0.1787134,111920.0,111910.0,0.08940301]
[1760262491755,0.1787134,111920.0,111910.0,0.04884301]
[1760262493566,0.1787134,111920.0,111910.0,0.00116301]
[1760262493778,0.19548129,111920.0,111910.0,0.00116301]
[1760262494011,0.22236617,111920.0,111910.0,0.00116301]
[1760262494884,0.20559828,111920.0,111910.0,0.00116301]
[1760262495101,0.21961404,111920.0,111910.0,0.00116301]
[1760262496458,0.21961404,111920.0,111910.0,0.02774301]
[1760262499575,0.21961404,111920.0,111910.0,0.00116301]
[1760262501806,0.2437387,111920.0,111910.0,0.00116301]
[1760262502439,0.21961404,111920.0,111910.0,0.00116301]
[1760262503736,0.2437387,111920.0,111910.0,0.00116301]
[1760262503904,0.26050906,111920.0,111910.0,0.00116301]
[1760262504798,0.28820237,111920.0,111910.0,0.00116301]
[1760262505941,0.28820237,111920.0,111910.0,1e-08]
[1760262506317,0.05386183,111920.0,111910.0,1e-08]
[1760262506583,0.23257523,111920.0,111910.0,1e-08]
[1760262507664,0.23257523,111920.0,111910.0,0.02658001]
[1760262508258,0.23257523,111920.0,111910.0,1e-08]
[1760262515156,0.15236172,111930.0,111910.0,1e-08]
[1760262515367,0.17871503,111910.0,111900.0,0.00014984]
[1760262515594,0.17871503,111910.0,111900.0,0.02672984]
[1760262515758,0.17871503,111910.0,111900.0,0.08920984]
[1760262515952,0.17871503,111910.0,111900.0,0.04652984]
[1760262517206,0.17871503,111910.0,111900.0,0.00014984]
[1760262520005,0.20560309,111910.0,111900.0,0.00014984]
[1760262520687,0.20560309,111910.0,111900.0,0.00073146]
[1760262521095,0.178731,111900.0,111880.0,0.01954]
[1760262521253,0.17876296,111880.0,111870.0,0.16963362]
[1760262521475,0.17876296,111880.0,111870.0,0.19824356]
[1760262521681,0.17876296,111880.0,111870.0,0.12661994]
[1760262523244,0.17876296,111880.0,111870.0,0.12761994]
[1760262525176,0.17876296,111880.0,111870.0,0.12661994]
[1760262526778,0.17876296,111880.0,111870.0,0.12836531]
[1760262526993,0.17876296,111880.0,111870.0,0.13027531]
[1760262529960,0.17876296,111880.0,111870.0,0.08815531]
[1760262530819,0.17876296,111880.0,111870.0,0.13027531]
[1760262531231,0.17876296,111880.0,111870.0,0.04358173]
[1760262531895,0.17876296,111880.0,111870.0,0.01512173]
[1760262533084,0.17876296,111880.0,111870.0,1e-08]
[1760262533546,0.2056592,111880.0,111870.0,1e-08]
[1760262537720,0.21967998,111880.0,111870.0,1e-08]
[1760262539580,0.21967998,111880.0,111870.0,0.09151001]
[1760262539810,0.17876296,111880.0,111870.0,0.09151001]
[1760262540829,0.17876296,111880.0,111870.0,0.04939001]
[1760262540967,0.21451395,111880.0,111870.0,0.04939001]
[1760262541171,0.17876296,111880.0,111870.0,0.04939001]
[1760262545099,0.17876296,111880.0,111870.0,1e-08]
[1760262545507,0.54287345,111880.0,111870.0,1e-08]
[1760262545719,0.60795926,111880.0,111870.0,1e-08]
[1760262546457,0.67032865,111880.0,111870.0,1e-08]
[1760262546665,0.7349375,111880.0,111870.0,1e-08]
[1760262546888,0.79728878,111880.0,111870.0,1e-08]
[1760262547095,0.76507129,111880.0,111870.0,1e-08]
[1760262548671,0.76607129,111880.0,111870.0,1e-08]
[1760262550828,0.71774205,111880.0,111870.0,1e-08]
[1760262552837,0.62902271,111880.0,111870.0,1e-08]
[1760262553044,0.67723582,111880.0,111870.0,1e-08]
[1760262557852,0.30708392,111880.0,111870.0,1e-08]
[1760262558066,0.26895479,111880.0,111870.0,0.04741001]
[1760262558305,0.62297662,111880.0,111870.0,0.04741001]
[1760262558482,0.62297662,111880.0,111870.0,1e-08]
[1760262558890,0.62197662,111880.0,111870.0,1e-08]
[1760262559882,0.71008462,111880.0,111870.0,1e-08]
[1760262562193,0.62197662,111880.0,111870.0,1e-08]
[1760262564486,0.5450214,111880.0,111870.0,1e-08]
[1760262565335,0.02625844,111880.0,111870.0,0.08652001]
[1760262565539,0.17876296,111880.0,111870.0,0.08652001]
[1760262569869,0.17876296,111880.0,111870.0,1e-08]
[1760262570422,0.17876296,111880.0,111870.0,0.02652001]
[1760262571244,0.17876296,111880.0,111870.0,1e-08]
[1760262571643,0.51876296,111880.0,111870.0,1e-08]
[1760262574044,0.54891486,111880.0,111870.0,1e-08]
[1760262574252,0.57302088,111880.0,111870.0,1e-08]
[1760262574490,0.58105819,111880.0,111870.0,1e-08]
[1760262574673,0.6292713,111880.0,111870.0,1e-08]
[1760262574894,0.71276414,111880.0,111870.0,1e-08]
[1760262575084,0.68162081,111880.0,111870.0,1e-08]
[1760262575216,0.68262081,111880.0,111870.0,1e-08]
[1760262575709,0.6344077,111880.0,111870.0,1e-08]
[1760262575946,0.76408427,111880.0,111870.0,1e-08]
[1760262576152,0.1788109,111850.0,111840.0,0.0376]
[1760262576363,0.23504634,111850.0,111840.0,0.03764997]
[1760262576565,0.25178291,111850.0,111840.0,1e-08]
[1760262576766,0.21964837,111850.0,111840.0,1e-08]
[1760262576966,0.29072982,111850.0,111840.0,1e-08]
[1760262577326,0.3011903,111850.0,111840.0,1e-08]
[1760262578142,0.3031903,111850.0,111840.0,1e-08]
[1760262578615,0.29272982,111850.0,111840.0,1e-08]
[1760262581704,0.29272982,111850.0,111840.0,0.00174609]
[1760262583938,0.29272982,111850.0,111840.0,1e-08]
[1760262586282,0.26862892,111850.0,111840.0,1e-08]
[1760262586689,0.29272982,111850.0,111840.0,1e-08]
[1760262588059,0.34502523,111850.0,111840.0,1e-08]
[1760262588749,0.33099988,111850.0,111840.0,1e-08]
[1760262591545,0.3450261,111850.0,111840.0,1e-08]
[1760262592178,0.29273069,111850.0,111840.0,1e-08]
[1760262592554,0.27870447,111850.0,111840.0,1e-08]
[1760262595294,0.28068711,111850.0,111840.0,1e-08]
[1760262595504,0.28068711,111850.0,111840.0,0.02681001]
[1760262595505,0.1808109,111850.0,111840.0,0.02681001]
[1760262595723,0.1808109,111850.0,111840.0,1e-08]
[1760262595931,0.19483574,111850.0,111840.0,1e-08]
[1760262596405,0.21153467,111850.0,111840.0,1e-08]
[1760262597473,0.23563557,111850.0,111840.0,1e-08]
[1760262599386,0.28705074,111850.0,111840.0,1e-08]
[1760262599605,0.0551754,111850.0,111840.0,1e-08]
[1760262599828,0.1788109,111850.0,111840.0,1e-08]
[1760262600287,0.18717839,111850.0,111840.0,1e-08]
[1760262601416,0.25030329,111850.0,111840.0,1e-08]
[1760262601642,0.20645902,111850.0,111840.0,1e-08]
[1760262603541,0.23859356,111850.0,111840.0,1e-08]
[1760262603979,0.17885888,111820.0,111810.0,0.09251362]
[1760262604181,0.17885888,111820.0,111810.0,0.09301386]
[1760262604612,0.17885888,111820.0,111810.0,0.02139024]
[1760262605247,0.17885888,111820.0,111810.0,0.04820024]
[1760262606340,0.17885888,111820.0,111810.0,0.00050024]
[1760262606774,0.17885888,111820.0,111810.0,0.02731024]
[1760262607428,0.17885888,111820.0,111810.0,0.04858024]
[1760262609111,0.1492997,111830.0,111810.0,0.04858024]
[1760262609302,0.17885888,111820.0,111810.0,0.04858024]
[1760262609645,0.17885888,111820.0,111810.0,0.05032702]
[1760262610250,0.17885888,111820.0,111810.0,0.00224702]
[1760262611765,0.19563382,111820.0,111810.0,0.00224702]
[1760262612162,0.20402106,111820.0,111810.0,0.00224702]
[1760262612391,0.19563382,111820.0,111810.0,0.00224702]
[1760262613267,0.20402054,111820.0,111810.0,0.00224702]
[1760262613636,0.54402036,111820.0,111810.0,0.00224702]
[1760262613966,0.59345289,111820.0,111810.0,0.00224702]
[1760262614167,0.65249969,111820.0,111810.0,0.00224702]
[1760262614367,0.62558743,111820.0,111810.0,0.00224702]
[1760262614592,0.39850684,111820.0,111810.0,0.00224702]
[1760262614721,0.59139469,111820.0,111810.0,0.00224702]
[1760262614931,0.62452717,111820.0,111810.0,0.00224702]
[1760262615364,0.65243943,111820.0,111810.0,0.00224702]
[1760262620181,0.65242777,111820.0,111810.0,0.00224702]
[1760262621133,0.6383988,111820.0,111810.0,0.00224702]
[1760262623314,0.61148241,111820.0,111810.0,0.00224702]
[1760262624522,0.62754968,111820.0,111810.0,0.00224702]
[1760262626312,0.65968499,111820.0,111810.0,0.00224702]
[1760262626506,0.62754968,111820.0,111810.0,0.00224702]
[1760262629374,0.65969953,111820.0,111810.0,0.00224702]
[1760262630493,0.24134582,111820.0,111810.0,0.03010702]
[1760262630649,0.18991534,111820.0,111810.0,0.05137702]
[1760262631030,0.52085888,111820.0,111810.0,0.00224702]
[1760262631233,0.54013951,111820.0,111810.0,0.00224702]
[1760262632883,0.62756872,111820.0,111810.0,0.00224702]
[1760262633115,0.57029141,111820.0,111810.0,0.00224702]
[1760262635191,0.60244126,111820.0,111810.0,0.00224702]
[1760262635404,0.62757938,111820.0,111810.0,0.00224702]
[1760262636289,0.57029141,111820.0,111810.0,0.00224702]
[1760262636502,0.62758303,111820.0,111810.0,0.00224702]
[1760262637579,0.67601963,111820.0,111810.0,0.00224702]
[1760262637790,0.62758303,111820.0,111810.0,0.00224702]
[1760262640224,0.62762066,111820.0,111810.0,0.00224702]
[1760262641299,0.67582247,111820.0,111810.0,0.00224702]
[1760262642577,0.17889087,111800.0,111790.0,0.0004]
[1760262642770,0.19565205,111800.0,111790.0,0.00044997]
[1760262643337,0.21497031,111800.0,111790.0,0.00044997]
[1760262646629,0.19565205,111800.0,111790.0,0.00044997]
[1760262646836,0.19565205,111800.0,111790.0,0.04769997]
[1760262647637,0.19565205,111800.0,111790.0,0.02017997]
[1760262648024,0.19565205,111800.0,111790.0,0.02134485]
[1760262648932,0.19565205,111800.0,111790.0,0.00161485]
[1760262649952,0.19565205,111800.0,111790.0,0.02913485]
[1760262650157,0.19565205,111800.0,111790.0,0.04886485]
[1760262650484,0.17889087,111800.0,111790.0,0.04886485]
[1760262652045,0.17889087,111800.0,111790.0,0.02134485]
[1760262652305,0.17889087,111800.0,111790.0,0.00161485]
[1760262655676,0.17889087,111800.0,111790.0,0.09105485]
[1760262656539,0.17889087,111800.0,111790.0,0.04886485]
[1760262657613,0.17889087,111800.0,111790.0,0.09105485]
[1760262657835,0.17889087,111800.0,111790.0,0.04886485]
[1760262658743,0.17889087,111800.0,111790.0,0.00161485]
[1760262658891,0.17889087,111800.0,111790.0,0.04886485]
[1760262665737,0.17889087,111800.0,111790.0,0.00161485]
[1760262667881,0.17889087,111800.0,111790.0,0.02822485]
[1760262668078,0.19292158,111800.0,111790.0,0.02822485]
[1760262669800,0.19292158,111800.0,111790.0,0.10908553]
[1760262670008,0.17889087,111800.0,111790.0,0.09119485]
[1760262677233,0.17889087,111800.0,111790.0,0.27010172]
[1760262679591,0.17887487,111810.0,111790.0,0.27010172]
[1760262679824,0.17887487,111810.0,111800.0,0.03900908]
[1760262680030,0.17887487,111810.0,111800.0,0.08144147]
[1760262680257,0.17887487,111810.0,111800.0,0.10805147]
[1760262683405,0.17887487,111810.0,111800.0,0.09016239]
[1760262702990,0.17367487,111810.0,111800.0,0.09016239]
[1760262708156,0.19046845,111810.0,111800.0,0.00058239]
[1760262708354,0.23394831,111810.0,111800.0,0.00058239]
[1760262709320,0.55563005,111810.0,111800.0,0.00058239]
[1760262709530,0.57494831,111810.0,111800.0,0.00058239]
[1760262709733,0.57594831,111810.0,111800.0,0.00058239]
[1760262712167,0.60286129,111810.0,111800.0,0.00058239]
[1760262713118,0.60284236,111810.0,111800.0,0.00058239]
[1760262714535,0.06500589,111810.0,111800.0,0.00058239]
[1760262714732,0.2245625,111810.0,111800.0,0.00058239]
[1760262717076,0.19764952,111810.0,111800.0,0.00058239]
[1760262718790,0.18087487,111810.0,111800.0,0.00058239]
[1760262719232,0.18087487,111810.0,111800.0,0.04815239]
[1760262719451,0.18087487,111810.0,111800.0,0.08881239]
[1760262720493,0.17987487,111810.0,111800.0,0.08881239]
[1760262721157,0.17987487,111810.0,111800.0,0.04815239]
[1760262721365,0.17887487,111810.0,111800.0,0.08881239]
[1760262722661,0.17887487,111810.0,111800.0,0.04815239]
[1760262722887,0.17887487,111810.0,111800.0,0.08881239]
[1760262727205,0.17521059,111820.0,111800.0,0.08881239]
[1760262727419,0.17887487,111810.0,111800.0,0.08881239]
[1760262732556,0.18923781,111820.0,111800.0,0.26770326]
[1760262732773,0.18923781,111820.0,111810.0,0.17887487]
[1760262732774,0.0009587,111820.0,111810.0,0.17887487]
[1760262733027,0.0009587,111820.0,111810.0,0.26673487]
[1760262734137,0.0019587,111820.0,111810.0,0.26673487]
[1760262734363,0.0019587,111820.0,111810.0,0.26773487]
[1760262734575,0.0009587,111820.0,111810.0,0.26773487]
[1760262735016,0.0009587,111820.0,111810.0,0.26873487]
[1760262736484,0.0009587,111820.0,111810.0,0.60873487]
[1760262737597,0.0009587,111820.0,111810.0,0.63888677]
[1760262738517,0.0009587,111820.0,111810.0,0.73888676]
[1760262739653,0.0009587,111820.0,111810.0,0.60873487]
[1760262742922,0.0009587,111820.0,111810.0,0.63563318]
[1760262743668,0.0009587,111820.0,111810.0,0.60873487]
[1760262744348,0.20178803,111870.0,111860.0,0.17879492]
[1760262744349,0.01402436,111870.0,111860.0,0.17879492]
[1760262744572,0.18776373,111890.0,111860.0,0.28444492]
[1760262744819,0.2069168,111900.0,111880.0,0.01981]
[1760262744820,0.18769478,111900.0,111880.0,0.01981]
[1760262745040,0.18769478,111900.0,111890.0,0.06805]
[1760262745257,0.17881774,111910.0,111890.0,0.08786]
[1760262745472,0.17881774,111910.0,111900.0,0.06125]
[1760262745687,0.17921453,111910.0,111900.0,0.266591]
[1760262745844,0.0004995,111910.0,111900.0,0.266591]
[1760262746053,0.17921453,111910.0,111900.0,0.08786]
[1760262746259,0.17921453,111910.0,111900.0,0.10341838]
[1760262746615,0.17921453,111910.0,111900.0,0.08786]
[1760262748262,0.178731,111900.0,111890.0,0.01981]
[1760262748488,0.178731,111900.0,111890.0,0.04642]
[1760262748690,0.178731,111900.0,111880.0,0.06125]
[1760262748691,0.17874698,111890.0,111880.0,0.06125]
[1760262748989,0.17874698,111890.0,111880.0,0.08786]
[1760262749960,0.17876296,111880.0,111870.0,0.06125]
[1760262750201,0.17876296,111880.0,111870.0,0.08786]
[1760262750446,0.18225454,111880.0,111870.0,0.08786]
[1760262750660,0.18225454,111880.0,111870.0,0.10573789]
[1760262750919,0.00349158,111880.0,111870.0,0.26663893]
[1760262753153,0.00349158,111880.0,111870.0,0.60663893]
[1760262753355,0.00349158,111880.0,111870.0,0.63779083]
[1760262753589,0.00349158,111880.0,111870.0,0.63879083]
[1760262753976,0.00831449,111910.0,111890.0,0.17873471]
[1760262754131,0.18703513,111910.0,111900.0,0.08786]
[1760262754722,0.18877999,111910.0,111900.0,0.08786]
[1760262754926,0.19771574,111910.0,111900.0,0.08786]
[1760262758135,0.19771574,111910.0,111900.0,0.04642]
[1760262758354,0.19771574,111910.0,111900.0,0.08663]
[1760262759024,0.19771574,111910.0,111900.0,0.04642]
[1760262760374,0.19771574,111910.0,111900.0,0.08663]
[1760262762248,0.21437386,111910.0,111900.0,0.08663]
[1760262764119,0.21437386,111910.0,111900.0,0.04642]
[1760262765188,0.19771574,111910.0,111900.0,0.04642]
[1760262765619,0.178731,111900.0,111890.0,0.05741]
[1760262765848,0.18704549,111900.0,111890.0,0.08439]
[1760262766042,0.18820883,111900.0,111890.0,0.08439]
[1760262766467,0.18820883,111900.0,111890.0,0.12407]
[1760262768732,0.18820883,111900.0,111890.0,0.06458]
[1760262768939,0.18820883,111900.0,111890.0,0.08448]
[1760262771188,0.20492158,111900.0,111890.0,0.12416]
[1760262772194,0.18820883,111900.0,111890.0,0.12416]
[1760262772403,0.20493288,111900.0,111890.0,0.12416]
[1760262774437,0.22408872,111900.0,111890.0,0.12416]
[1760262775276,0.04535772,111900.0,111890.0,0.30290698]
[1760262775478,0.22408872,111900.0,111890.0,0.12416]
[1760262775884,0.22408872,111900.0,111890.0,0.30290698]
[1760262777256,0.22408872,111900.0,111890.0,0.12416]
[1760262778241,0.04175358,111900.0,111890.0,0.12416]
[1760262778744,0.04175358,111900.0,111890.0,0.30290698]
[1760262778948,0.04175358,111900.0,111890.0,0.12416]
[1760262782684,0.04175358,111900.0,111890.0,0.30290698]
[1760262783688,0.04175358,111900.0,111890.0,0.12416]
[1760262784302,0.04175358,111900.0,111890.0,0.30290698]
[1760262784502,0.06762699,111910.0,111890.0,0.30290698]
[1760262784750,0.17871044,111920.0,111900.0,0.2561841]
[1760262784973,0.17884885,111920.0,111910.0,0.08656]
[1760262785181,0.17884885,111920.0,111910.0,0.26527503]
[1760262785530,0.00131281,111920.0,111910.0,0.26527503]
[1760262785739,0.18001188,111920.0,111910.0,0.08656]
[1760262790096,0.1883851,111920.0,111910.0,0.08656]
[1760262793035,0.17871503,111910.0,111900.0,0.0199]
[1760262793241,0.17871503,111910.0,111900.0,0.05853]
[1760262793441,0.17871503,111910.0,111900.0,0.08593]
[1760262797493,0.17871503,111910.0,111900.0,0.2825341]
[1760262797816,0.17871503,111910.0,111900.0,0.264661]
[1760262798371,0.1792966,111910.0,111900.0,0.264661]
[1760262799399,0.00058157,111910.0,111900.0,0.264661]
[1760262800354,0.00058157,111910.0,111900.0,0.2948129]
[1760262800759,0.00058157,111910.0,111900.0,0.2958129]
[1760262801031,0.00058157,111910.0,111900.0,0.2968129]
[1760262801263,0.00058157,111910.0,111900.0,0.2958129]
[1760262801635,0.00058157,111910.0,111900.0,0.2968129]
[1760262802283,0.00058157,111910.0,111900.0,0.2958129]
[1760262802730,0.00058157,111910.0,111900.0,0.2968129]
[1760262812986,0.00058157,111910.0,111900.0,0.266661]
[1760262813745,0.1792966,111910.0,111900.0,0.266661]
[1760262814888,0.00058157,111910.0,111900.0,0.266661]
[1760262815432,0.1792966,111910.0,111900.0,0.266661]
[1760262815711,0.00058157,111910.0,111900.0,0.266661]
[1760262816486,0.1792966,111910.0,111900.0,0.266661]
[1760262817619,0.51885305,111920.0,111910.0,0.00241843]
[1760262817836,0.51885305,111920.0,111910.0,0.09131843]
[1760262818068,0.51885305,111920.0,111910.0,0.27003346]
[1760262818270,0.34014978,111920.0,111910.0,0.27003346]
[1760262818410,0.51884885,111920.0,111910.0,0.27003346]
[1760262818615,0.00014978,111920.0,111910.0,0.27003346]
[1760262819056,0.00014978,111920.0,111910.0,0.30759346]
[1760262819295,0.00014978,111920.0,111910.0,0.30859346]
[1760262819871,0.00014978,111920.0,111910.0,0.30959346]
[1760262823195,0.00073123,111920.0,111910.0,0.30959346]
[1760262829283,0.1794303,111920.0,111910.0,0.30959346]
[1760262829496,0.00073123,111920.0,111910.0,0.30959346]
[1760262832517,0.1794303,111920.0,111910.0,0.30959346]
[1760262832965,0.1794303,111920.0,111910.0,0.13087843]
[1760262833174,0.1794303,111920.0,111910.0,0.30959346]
[1760262834533,0.00073123,111920.0,111910.0,0.30959346]
[1760262834745,0.1794303,111920.0,111910.0,0.30959346]
[1760262836772,0.15622486,111930.0,111910.0,0.30959346]
[1760262836929,0.49622486,111930.0,111920.0,0.02075]
[1760262837251,0.49622486,111930.0,111920.0,0.0868]
[1760262838429,0.49622486,111930.0,111920.0,0.12436]
[1760262842514,0.49680627,111930.0,111920.0,0.12436]
[1760262844929,0.17926482,111930.0,111920.0,0.12436]
[1760262848575,0.51926482,111930.0,111920.0,0.12436]
[1760262848780,0.51926482,111930.0,111920.0,0.0854]
[1760262851078,0.56873355,111930.0,111920.0,0.03756]
[1760262851286,0.59387893,111930.0,111920.0,0.03756]
[1760262851850,0.57711534,111930.0,111920.0,0.03756]
[1760262852071,0.56873355,111930.0,111920.0,0.12367]
[1760262852392,0.56873355,111930.0,111920.0,0.08347]
[1760262852906,0.56873355,111930.0,111920.0,0.05762]
[1760262853107,0.56873355,111930.0,111920.0,0.03756]
[1760262855135,0.58274722,111930.0,111920.0,0.03756]
[1760262860817,0.56873355,111930.0,111920.0,0.03756]
[1760262861036,0.52114787,111930.0,111920.0,0.03756]
[1760262861669,0.52114787,111930.0,111920.0,0.06341]
[1760262861879,0.52114787,111930.0,111920.0,0.03756]
[1760262862654,0.18780224,111940.0,111930.0,0.1786831]
[1760262862655,0.0002,111940.0,111930.0,0.1786831]
[1760262862864,0.17886714,111940.0,111930.0,0.2647931]
[1760262863081,0.51886714,111940.0,111930.0,0.2647931]
[1760262863312,0.0002,111940.0,111930.0,0.2647931]
[1760262863720,0.3402,111940.0,111930.0,0.2647931]
[1760262867152,0.0002,111940.0,111930.0,0.2647931]
[1760262868235,0.00078134,111940.0,111930.0,0.2647931]
[1760262868458,0.00078134,111940.0,111930.0,0.2657931]
[1760262868694,0.00078134,111940.0,111930.0,0.2647931]
[1760262868907,0.00078134,111940.0,111930.0,0.2657931]
[1760262869578,0.00078134,111940.0,111930.0,0.2667931]
[1760262870284,0.00078134,111940.0,111930.0,0.26921153]
[1760262870713,0.00078134,111940.0,111930.0,0.26821153]
[1760262871127,0.00078134,111940.0,111930.0,0.26921153]
[1760262875407,0.17944848,111940.0,111930.0,0.26921153]
[1760262875850,0.00078134,111940.0,111930.0,0.26921153]
[1760262876713,0.17944848,111940.0,111930.0,0.08952843]
[1760262876938,0.51944848,111940.0,111930.0,0.08952843]
[1760262877144,0.51944848,111940.0,111930.0,0.26821153]
[1760262877347,0.34078134,111940.0,111930.0,0.26921153]
[1760262877576,0.34078134,111940.0,111930.0,0.26821153]
[1760262877787,0.34078134,111940.0,111930.0,0.26721153]
[1760262878522,0.34078134,111940.0,111930.0,0.26821153]
[1760262878959,0.34078134,111940.0,111930.0,0.26921153]
[1760262880988,0.00078134,111940.0,111930.0,0.26921153]
[1760262884735,0.34,111950.0,111940.0,0.18030423]
[1760262884947,0.34,111950.0,111940.0,0.20656423]
[1760262885237,0.34,111950.0,111940.0,0.26762423]
[1760262888787,0.51881927,111970.0,111960.0,0.17863522]
[1760262888993,0.51896922,111970.0,111960.0,0.24486522]
[1760262889200,0.51896922,111970.0,111960.0,0.26595522]
[1760262891282,0.51896922,111970.0,111960.0,0.30351522]
[1760262892261,0.51896922,111970.0,111960.0,0.12488]
[1760262894009,0.54662268,111970.0,111960.0,0.12488]
[1760262895542,0.54836615,111970.0,111960.0,0.12488]
[1760262897608,0.54836615,111970.0,111960.0,0.12651709]
[1760262900921,0.36974688,111970.0,111960.0,0.12651709]
[1760262901129,0.00209342,111970.0,111960.0,0.32301583]
[1760262901283,0.00209342,111970.0,111960.0,0.30515231]
[1760262901690,0.34209342,111970.0,111960.0,0.30515231]
[1760262902301,0.34209342,111970.0,111960.0,0.30615231]
[1760262902762,0.34209342,111970.0,111960.0,0.30715231]
[1760262906500,0.00209342,111970.0,111960.0,0.30715231]
[1760262914824,0.00209342,111970.0,111960.0,0.39668183]
[1760262915033,0.00209342,111970.0,111960.0,0.42168182]
[1760262915714,0.00209342,111970.0,111960.0,0.52068181]
[1760262915916,0.00209342,111970.0,111960.0,0.51968181]
[1760262916095,0.00209342,111970.0,111960.0,0.5776925]
[1760262916295,0.00209342,111970.0,111960.0,0.9186925]
[1760262916528,1e-08,111970.0,111960.0,0.9186925]
[1760262917181,0.0002,111990.0,111980.0,0.54360331]
[1760262917392,0.0002,111990.0,111980.0,0.75341282]
[1760262917601,0.0002,111990.0,111980.0,1.22165282]
[1760262917812,0.0002,111990.0,111980.0,1.25180472]
[1760262918028,0.0002,111990.0,111980.0,1.27865757]
[1760262918243,0.0002,111990.0,111980.0,0.87865757]
[1760262918452,0.0002,111990.0,111980.0,0.88065757]
[1760262918665,0.0002,111990.0,111980.0,1.28065757]
[1760262918875,0.0002,111990.0,111980.0,1.28265757]
[1760262919087,0.00024995,111990.0,111980.0,1.28265757]
[1760262919511,0.00024995,111990.0,111980.0,1.15250568]
[1760262919933,0.00024995,111990.0,111980.0,0.81250568]
[1760262920140,0.00024995,111990.0,111980.0,0.38565283]
[1760262921686,0.00024995,111990.0,111980.0,0.38165283]
[1760262921921,0.00024995,111990.0,111980.0,0.38365283]
[1760262923018,0.00141189,111990.0,111980.0,0.38365283]
[1760262926618,0.00141189,111990.0,111980.0,0.41380473]
[1760262929563,0.00141189,111990.0,111980.0,0.26912332]
[1760262930828,0.00141189,111990.0,111980.0,0.26812332]
[1760262931047,4.39557928,112000.0,111990.0,0.17858737]
[1760262931270,4.39557928,112000.0,111990.0,0.26710737]
[1760262932573,4.9141507,112000.0,111990.0,0.08952]
[1760262933245,4.92249554,112000.0,111990.0,0.09052]
[1760262933913,4.92249554,112000.0,111990.0,0.08952]
[1760262934148,4.92249554,112000.0,111990.0,0.02028]
[1760262934371,0.51858737,111990.0,111980.0,0.24051332]
[1760262934616,0.51858737,111990.0,111980.0,0.08852]
[1760262934831,0.51858737,111990.0,111980.0,0.26712332]
[1760262935042,0.51858737,111990.0,111980.0,0.08852]
[1760262935667,0.51858737,111990.0,111980.0,0.26712332]
[1760262936601,0.51858737,111990.0,111980.0,0.26808013]
[1760262938549,0.17858737,111990.0,111980.0,0.26808013]
[1760262938952,0.17858737,111990.0,111980.0,0.08947681]
[1760262939111,0.17858737,111990.0,111980.0,0.26808013]
[1760262939723,0.17858737,111990.0,111980.0,0.08947681]
[1760262940141,0.17858737,111990.0,111980.0,0.26808013]
[1760262940544,0.17858737,111990.0,111980.0,0.08947681]
[1760262942032,0.51858737,111990.0,111980.0,0.26808013]
[1760262942263,0.51858737,111990.0,111980.0,0.08947681]
[1760262945741,0.51858737,111990.0,111980.0,0.26808013]
[1760262948180,4.19260693,112000.0,111990.0,0.17858737]
[1760262948351,4.15128693,112000.0,111990.0,0.26385737]
[1760262953365,4.14511249,112000.0,111990.0,0.26385737]
[1760262954616,4.14511249,112000.0,111990.0,0.26549446]
[1760262954817,4.14511249,112000.0,111990.0,0.26649446]
[1760262955265,4.14511249,112000.0,111990.0,0.26794296]
[1760262955890,4.14511249,112000.0,111990.0,0.26894296]
[1760262976586,4.32368391,112000.0,111990.0,0.09035559]
[1760262977175,4.66204682,112000.0,111990.0,0.0887185]
[1760262977378,4.70750682,112000.0,111990.0,0.0228285]
[1760262977577,4.74462682,112000.0,111990.0,0.0034485]
[1760262977781,4.72680307,112000.0,111990.0,0.0034485]
[1760262977976,4.72680307,112000.0,111990.0,0.0288385]
[1760262978248,4.72680307,112000.0,111990.0,0.0278385]
[1760262978587,4.72680307,112000.0,111990.0,0.0268385]
[1760262978788,4.72890307,112000.0,111990.0,0.0268385]
[1760262979452,4.70960682,112000.0,111990.0,0.0268385]
[1760262981884,4.66414682,112000.0,111990.0,0.0862885]
[1760262982309,4.68256682,112000.0,111990.0,0.0862885]
[1760262982514,4.66414682,112000.0,111990.0,0.0862885]
[1760262990786,4.4855754,112000.0,111990.0,0.26487587]
[1760262991354,4.1455754,112000.0,111990.0,0.26487587]
[1760262992609,4.1455754,112000.0,111990.0,0.26587587]
[1760262992992,4.36930682,112000.0,111990.0,0.0872885]
[1760262993175,4.70930682,112000.0,111990.0,0.22584587]
[1760262993588,4.70930682,112000.0,111990.0,0.0865585]
[1760262993790,4.68256682,112000.0,111990.0,0.0865585]
[1760262993968,4.68256682,112000.0,111990.0,0.26614587]
[1760262994180,4.68256682,112000.0,111990.0,0.26514587]
[1760262994387,4.68256682,112000.0,111990.0,0.26414587]
[1760262994585,4.66414682,112000.0,111990.0,0.26414587]
[1760262995578,4.66414682,112000.0,111990.0,0.0855585]
[1760262995778,4.70912682,112000.0,111990.0,0.0462585]